bitfinex/quotes_BTCUSD_20250903
["timestamp","ask_amount","ask_price","bid_price","bid_amount"]
[1756908337171,0.00595638,111980.0,111970.0,0.8754174]
[1756908337424,0.804283,111980.0,111970.0,0.69679813]
[1756908337640,1.144283,111980.0,111970.0,0.404]
[1756908337883,1.23619899,111980.0,111970.0,0.4]
[1756908338137,0.17864417,111960.0,111940.0,0.32975013]
[1756908338339,0.17864417,111960.0,111950.0,0.43044717]
[1756908338544,0.17864417,111960.0,111950.0,0.09191599]
[1756908338766,0.18072417,111960.0,111950.0,0.27056717]
[1756908338953,0.18392417,111960.0,111950.0,0.43044717]
[1756908339629,0.18392417,111960.0,111950.0,0.25179599]
[1756908339846,0.17865118,111950.0,111940.0,0.76073883]
[1756908340078,0.18396118,111950.0,111940.0,0.56055599]
[1756908340303,1.39196805,111950.0,111940.0,0.4]
[1756908340520,1.39196805,111950.0,111940.0,0.55988]
[1756908342252,1.39496805,111950.0,111940.0,0.55988]
[1756908343805,0.1786831,111930.0,111920.0,0.24733862]
[1756908344022,1.04879997,111930.0,111920.0,0.32039599]
[1756908344239,1.05199997,111930.0,111920.0,0.36113061]
[1756908344520,0.00211,111930.0,111920.0,0.94189968]
[1756908344741,1.3985906,111950.0,111930.0,0.1786831]
[1756908344974,1.21100687,111950.0,111930.0,0.09414952]
[1756908345208,0.1818831,111930.0,111920.0,0.55984]
[1756908345433,0.1818831,111930.0,111920.0,0.56097997]
[1756908345434,0.1839931,111930.0,111920.0,0.56097997]
[1756908345649,0.86800687,111940.0,111930.0,0.1786831]
[1756908345790,1.04667401,111940.0,111930.0,0.09191599]
[1756908346010,1.05198401,111940.0,111930.0,0.25175599]
[1756908346427,1.05198401,111940.0,111930.0,0.43043909]
[1756908346832,1.05198401,111940.0,111930.0,0.09191599]
[1756908347154,0.1786831,111930.0,111920.0,0.40013997]
[1756908347380,1.05400007,111930.0,111920.0,0.55997997]
[1756908347598,1.05199997,111930.0,111920.0,0.55997997]
[1756908348239,1.05199997,111930.0,111920.0,0.55993997]
[1756908348915,1.05199997,111930.0,111920.0,0.00013997]
[1756908349374,1.41736997,111930.0,111920.0,0.00013997]
[1756908349656,1.57716997,111930.0,111920.0,0.00113997]
[1756908350089,1.41736997,111930.0,111920.0,0.00013997]
[1756908350315,1.39199997,111930.0,111920.0,0.00013997]
[1756908350549,1.39499997,111930.0,111920.0,0.17883904]
[1756908350771,1.21631687,111930.0,111920.0,0.18107277]
[1756908351009,1.39179997,111930.0,111920.0,0.18207277]
[1756908351245,1.38968997,111930.0,111920.0,0.18190904]
[1756908351480,1.39499997,111930.0,111920.0,0.17983904]
[1756908351913,1.38879997,111930.0,111920.0,0.18107277]
[1756908352156,1.38879997,111930.0,111920.0,0.18090904]
[1756908352362,0.003,111930.0,111920.0,0.34150503]
[1756908352578,0.001,111930.0,111920.0,0.34150503]
[1756908353504,1.04979997,111930.0,111920.0,0.33943503]
[1756908353725,1.04879997,111930.0,111920.0,0.89923503]
[1756908353943,1.05199997,111930.0,111920.0,0.62857997]
[1756908354169,1.05199997,111930.0,111920.0,0.40013997]
[1756908354386,1.39199997,111930.0,111920.0,0.00013997]
[1756908354610,1.39199997,111930.0,111920.0,0.15989997]
[1756908355100,1.39199997,111930.0,111920.0,0.16089997]
[1756908355498,1.39199997,111930.0,111920.0,0.15989997]
[1756908355674,1.39199997,111930.0,111920.0,0.16089997]
[1756908356033,1.39199997,111930.0,111920.0,0.00013997]
[1756908356434,1.57583195,111930.0,111920.0,0.00013997]
[1756908356661,1.60120195,111930.0,111920.0,0.00013997]
[1756908356876,1.60320195,111930.0,111920.0,0.00013997]
[1756908357113,0.17874698,111890.0,111880.0,0.14222631]
[1756908357370,0.87000697,111890.0,111880.0,0.88079591]
[1756908357578,1.04675385,111890.0,111880.0,0.88286591]
[1756908358144,0.86800687,111890.0,111880.0,0.88286591]
[1756908358353,1.04886385,111890.0,111880.0,0.73940559]
[1756908358581,1.05206385,111890.0,111880.0,0.90016559]
[1756908358795,1.05206385,111890.0,111880.0,0.90223559]
[1756908358796,1.04675385,111890.0,111880.0,0.90223559]
[1756908359024,1.05206385,111890.0,111880.0,0.40104664]
[1756908359248,1.39206385,111890.0,111880.0,0.16076664]
[1756908359463,0.52405698,111890.0,111880.0,0.16276664]
[1756908359677,1.38886385,111890.0,111880.0,0.56483664]
[1756908359923,1.39206385,111890.0,111880.0,0.56276664]
[1756908360124,1.38886385,111890.0,111880.0,0.56483664]
[1756908360335,1.04993787,111900.0,111880.0,0.7415996]
[1756908360551,0.17874698,111890.0,111880.0,0.7405996]
[1756908360771,0.18085698,111890.0,111880.0,0.7385296]
[1756908360984,1.05206385,111890.0,111880.0,0.55976664]
[1756908361901,1.39206385,111890.0,111880.0,0.40104664]
[1756908362115,1.39206385,111890.0,111880.0,0.56076664]
[1756908362595,0.34531,111890.0,111880.0,0.7385296]
[1756908362809,1.38886385,111890.0,111880.0,0.7395296]
[1756908363015,1.38886385,111890.0,111880.0,0.56076664]
[1756908363016,1.39206385,111890.0,111880.0,0.56076664]
[1756908363450,1.21331687,111890.0,111880.0,0.7395296]
[1756908363662,1.38886385,111890.0,111880.0,0.7405996]
[1756908363912,1.38886385,111890.0,111880.0,0.7415996]
[1756908364124,1.39206385,111890.0,111880.0,0.56076664]
[1756908364333,1.20800687,111890.0,111880.0,0.7405996]
[1756908364544,0.18193152,111900.0,111890.0,0.17874698]
[1756908364545,1.38993839,111900.0,111890.0,0.17874698]
[1756908364763,1.39204839,111900.0,111890.0,0.17874698]
[1756908364991,0.34739852,111910.0,111890.0,0.17874698]
[1756908364992,0.19087852,111910.0,111890.0,0.18081698]
[1756908365253,0.18194277,111910.0,111900.0,0.338451]
[1756908365467,0.18752665,111920.0,111910.0,0.17871503]
[1756908365468,0.18189907,111920.0,111910.0,0.17871503]
[1756908365691,0.87331687,111920.0,111910.0,0.17871503]
[1756908365909,0.86800687,111930.0,111920.0,0.17869235]
[1756908366139,1.38879997,111930.0,111920.0,0.33841235]
[1756908366357,1.21011687,111930.0,111920.0,0.34048235]
[1756908366602,1.39199997,111930.0,111920.0,0.15972]
[1756908366815,1.05199997,111930.0,111920.0,0.15972]
[1756908367031,0.17869907,111920.0,111910.0,0.17871503]
[1756908367249,1.05401604,111920.0,111910.0,0.33839503]
[1756908367470,1.05201594,111920.0,111910.0,0.33839503]
[1756908367903,1.05201594,111920.0,111910.0,0.33939503]
[1756908368395,0.53081725,111930.0,111920.0,0.17869907]
[1756908368601,1.39199997,111930.0,111920.0,0.17869907]
[1756908369406,1.39199997,111930.0,111920.0,0.17969907]
[1756908369790,0.17869907,111920.0,111910.0,0.43031102]
[1756908369996,1.04877594,111920.0,111910.0,0.43031102]
[1756908370251,1.05189594,111920.0,111910.0,0.09191599]
[1756908370479,1.05189594,111920.0,111910.0,0.25155599]
[1756908370691,1.05189594,111920.0,111910.0,0.43027102]
[1756908371264,0.86800687,111920.0,111910.0,0.43239102]
[1756908371673,0.52180343,111930.0,111910.0,0.43239102]
[1756908371871,0.52180343,111930.0,111920.0,0.17869907]
[1756908372099,0.52387343,111930.0,111910.0,0.43027102]
[1756908372303,0.52387343,111930.0,111910.0,0.43127102]
[1756908372462,0.34519,111930.0,111920.0,0.17869907]
[1756908373082,0.18760107,111940.0,111920.0,0.17869907]
[1756908373083,0.52760107,111940.0,111930.0,0.1786831]
[1756908373285,1.39186459,111940.0,111930.0,0.15964]
[1756908373702,0.1786831,111930.0,111920.0,0.33833907]
[1756908373913,1.05076007,111930.0,111920.0,0.33833907]
[1756908374144,0.87319687,111930.0,111920.0,0.33833907]
[1756908374380,1.04668997,111930.0,111920.0,0.43237506]
[1756908374580,0.86800687,111930.0,111920.0,0.43237506]
[1756908374985,0.86900687,111940.0,111930.0,0.1786831]
[1756908375191,0.86900687,111940.0,111930.0,0.18303663]
[1756908375439,0.001,111940.0,111930.0,0.1808031]
[1756908375648,0.34312,111950.0,111940.0,0.17866714]
[1756908375822,0.87021671,111950.0,111940.0,0.33826714]
[1756908376264,0.00013984,111950.0,111940.0,0.34038714]
[1756908376706,0.00213994,111950.0,111940.0,0.34038714]
[1756908377320,1.05086799,111950.0,111940.0,0.74038714]
[1756908377529,0.87021671,111950.0,111940.0,0.74038714]
[1756908377747,0.86814671,111950.0,111940.0,0.74038714]
[1756908378219,0.00013984,111950.0,111940.0,0.77988678]
[1756908378424,0.00013984,111950.0,111940.0,0.78288678]
[1756908379498,0.00013984,111950.0,111940.0,0.78388678]
[1756908380258,0.00013984,111950.0,111940.0,0.87580277]
[1756908380463,0.00013984,111950.0,111940.0,0.87866277]
[1756908380917,0.00013984,111950.0,111940.0,0.87580277]
[1756908382411,0.18398102,111950.0,111940.0,0.71408277]
[1756908382661,1.05198789,111950.0,111940.0,0.60301964]
[1756908382875,1.13549998,111950.0,111940.0,0.404]
[1756908383142,1.13549998,111950.0,111940.0,0.78318014]
[1756908383143,0.87333671,111950.0,111940.0,0.78318014]
[1756908383371,0.87021671,111950.0,111940.0,0.78530014]
[1756908383640,0.87021671,111950.0,111940.0,0.78318014]
[1756908383845,1.05198789,111950.0,111940.0,0.604513]
[1756908384267,1.05198789,111950.0,111940.0,0.404]
[1756908384498,1.05198789,111950.0,111940.0,0.56048]
[1756908384698,1.05198789,111950.0,111940.0,0.401]
[1756908384913,0.18398102,111950.0,111940.0,0.56048]
[1756908385144,1.05198789,111950.0,111940.0,0.55948]
[1756908385369,1.05198789,111950.0,111940.0,0.56048]
[1756908385764,0.18398102,111950.0,111940.0,0.55948]
[1756908386018,1.05198789,111950.0,111940.0,0.55948]
[1756908387316,1.55146789,111950.0,111940.0,0.55948]
[1756908387573,1.55146789,111950.0,111920.0,0.07765495]
[1756908387574,0.1786831,111930.0,111920.0,0.28669227]
[1756908387782,1.05076007,111930.0,111920.0,0.44617227]
[1756908388004,0.87007687,111930.0,111920.0,0.84829227]
[1756908388233,0.86800687,111930.0,111920.0,0.94020826]
[1756908388443,0.87112687,111940.0,111930.0,0.1786831]
[1756908388702,0.86800687,111940.0,111930.0,0.1808031]
[1756908388916,0.00013984,111950.0,111940.0,0.17866714]
[1756908389135,0.86914671,111950.0,111940.0,0.34246047]
[1756908389409,0.00113984,111950.0,111940.0,0.43500313]
[1756908389625,0.00113984,111950.0,111940.0,0.43214313]
[1756908389626,0.00013984,111950.0,111940.0,0.43214313]
[1756908390960,0.00013984,111950.0,111940.0,0.43500313]
[1756908391608,0.00013984,111950.0,111940.0,0.83500313]
[1756908392447,0.00013984,111950.0,111940.0,0.83900313]
[1756908392862,0.00013984,111950.0,111940.0,0.83600313]
[1756908393075,0.00013984,111950.0,111940.0,0.83500313]
[1756908393340,0.00013984,111950.0,111940.0,0.83900313]
[1756908393557,0.00013984,111950.0,111940.0,0.84100313]
[1756908394434,0.00013984,111950.0,111940.0,0.84096313]
[1756908394655,0.00013984,111950.0,111940.0,1.20190195]
[1756908394865,0.00013984,111950.0,111940.0,1.26575206]
[1756908395091,0.00013984,111950.0,111940.0,0.86575206]
[1756908395307,0.00013984,111950.0,111940.0,0.80548137]
[1756908395513,0.00013984,111950.0,111940.0,2.13710954]
[1756908395740,1e-08,111950.0,111940.0,2.07348824]
[1756908395997,1e-08,111950.0,111940.0,2.19143824]
[1756908396210,1e-08,111950.0,111940.0,2.27126781]
[1756908396416,1e-08,111950.0,111940.0,2.12090781]
[1756908396629,1e-08,111950.0,111940.0,2.28026781]
[1756908396841,1e-08,111950.0,111940.0,2.27326781]
[1756908396984,1e-08,111950.0,111940.0,2.27126781]
[1756908397196,0.00028,111980.0,111970.0,0.19955809]
[1756908397416,0.00074638,111980.0,111970.0,0.51951408]
[1756908397607,0.00074638,111980.0,111970.0,0.52163408]
[1756908397819,0.00074638,111980.0,111970.0,0.92163408]
[1756908398220,0.00074638,111980.0,111970.0,0.76227408]
[1756908398428,0.00074638,111980.0,111970.0,0.92159408]
[1756908398863,0.00074638,111980.0,111970.0,0.93074077]
[1756908399072,0.00074638,111980.0,111970.0,0.77142077]
[1756908399474,0.00591638,111980.0,111970.0,0.74836195]
[1756908399688,1.05252657,111980.0,111970.0,0.56059599]
[1756908399893,1.05252657,111980.0,111970.0,0.80661927]
[1756908400109,0.1845197,111980.0,111970.0,0.80661927]
[1756908400321,1.05252657,111980.0,111970.0,0.80761927]
[1756908400529,1.05252657,111980.0,111970.0,0.46968]
[1756908400727,1.05252657,111980.0,111970.0,0.56032]
[1756908401000,0.17861927,111970.0,111960.0,0.17862802]
[1756908401211,1.05179614,111970.0,111960.0,0.42982401]
[1756908401408,1.05179614,111970.0,111960.0,0.82982401]
[1756908401611,0.80343063,111970.0,111960.0,0.82982401]
[1756908401834,0.80343063,111970.0,111960.0,0.55928]
[1756908402074,0.17865118,111950.0,111940.0,0.17866714]
[1756908402319,0.17866714,111940.0,111930.0,0.32090941]
[1756908402524,0.8034785,111940.0,111930.0,0.9034254]
[1756908402738,0.8034785,111940.0,111930.0,0.15928]
[1756908402968,0.1786831,111930.0,111920.0,0.21885614]
[1756908403186,0.80151446,111930.0,111920.0,0.87005213]
[1756908403405,0.80349446,111930.0,111920.0,0.87005213]
[1756908403660,0.62481136,111930.0,111920.0,0.87019197]
[1756908403867,0.62481136,111930.0,111920.0,0.71091197]
[1756908404295,0.62481136,111930.0,111920.0,0.87219197]
[1756908404499,0.80349446,111930.0,111920.0,0.87219197]
[1756908404708,0.62481136,111930.0,111920.0,0.78027598]
[1756908405782,0.62481136,111930.0,111920.0,0.78227598]
[1756908406962,0.00198,111930.0,111920.0,0.78227598]
[1756908407168,0.62681146,111930.0,111920.0,0.78227598]
[1756908407430,0.62481136,111930.0,111920.0,0.78227598]
[1756908408215,0.80349446,111930.0,111920.0,0.78227598]
[1756908408456,0.62481136,111930.0,111920.0,0.78227598]
[1756908408841,0.80349446,111930.0,111920.0,0.78227598]
[1756908409509,0.80349446,111930.0,111920.0,0.78223598]
[1756908409738,1.14349446,111930.0,111920.0,0.00413984]
[1756908409956,1.25923045,111930.0,111920.0,0.00413984]
[1756908410422,1.28609673,111930.0,111920.0,0.00413984]
[1756908410645,1.28609673,111930.0,111920.0,0.00213984]
[1756908410864,1.28609673,111930.0,111920.0,0.00013984]
[1756908411081,1.99865408,111930.0,111920.0,0.00013984]
[1756908411326,2.0195929,111930.0,111920.0,0.00013984]
[1756908411544,2.12584081,111930.0,111920.0,0.00013984]
[1756908411805,2.13493113,111930.0,111920.0,0.00013984]
[1756908412021,2.13393113,111930.0,111920.0,0.00013984]
[1756908412254,1.75801372,111900.0,111890.0,0.07354631]
[1756908412469,2.1010857,111900.0,111890.0,0.07359295]
[1756908412686,2.1062557,111900.0,111890.0,0.07359295]
[1756908413334,2.1062557,111900.0,111890.0,4.664e-05]
[1756908413815,2.20101452,111900.0,111890.0,4.664e-05]
[1756908414043,2.28696319,111900.0,111890.0,4.664e-05]
[1756908414279,2.30613142,111900.0,111890.0,4.664e-05]
[1756908414502,2.28696319,111900.0,111890.0,4.664e-05]
[1756908414749,2.25925493,111900.0,111890.0,4.664e-05]
[1756908414965,2.11915837,111900.0,111890.0,0.05148072]
[1756908415235,0.17882689,111840.0,111830.0,0.07354631]
[1756908415444,0.17882689,111840.0,111830.0,0.07401347]
[1756908415445,0.95970835,111840.0,111830.0,0.07401347]
[1756908415666,0.80044825,111840.0,111830.0,0.25487635]
[1756908415887,0.61964136,111840.0,111830.0,0.25487635]
[1756908416567,0.61964136,111840.0,111830.0,0.41411635]
[1756908417058,0.001,111840.0,111830.0,0.34557004]
[1756908417309,0.61964136,111840.0,111830.0,0.34057004]
[1756908417793,0.62064136,111840.0,111830.0,0.34557004]
[1756908418287,0.62064136,111840.0,111830.0,0.34957004]
[1756908418539,0.001,111840.0,111830.0,0.35243004]
[1756908419007,0.001,111840.0,111830.0,0.44434603]
[1756908419283,0.61964136,111850.0,111840.0,0.17882689]
[1756908419520,0.61964136,111850.0,111840.0,0.18084689]
[1756908420534,0.95964136,111860.0,111850.0,0.1788109]
[1756908420819,0.61964136,111860.0,111850.0,0.34230603]
[1756908421049,0.61964136,111870.0,111860.0,0.17879492]
[1756908421294,0.15924,111880.0,111870.0,0.17877893]
[1756908421529,0.02588157,111880.0,111860.0,0.17879492]
[1756908421750,0.18196929,111870.0,111860.0,0.17879492]
[1756908422196,0.18075929,111870.0,111860.0,0.18081492]
[1756908422418,0.34,111880.0,111870.0,0.17877893]
[1756908422663,1.1384509,111880.0,111870.0,0.18079893]
[1756908422885,0.95968794,111880.0,111870.0,0.34003893]
[1756908423111,4.658e-05,111880.0,111870.0,0.34289893]
[1756908423326,4.658e-05,111880.0,111870.0,0.4740401]
[1756908424038,4.658e-05,111880.0,111870.0,0.5427601]
[1756908424272,0.00104658,111880.0,111870.0,0.56969892]
[1756908424487,4.658e-05,111880.0,111870.0,0.56369892]
[1756908424712,4.658e-05,111880.0,111870.0,0.96369892]
[1756908424929,4.658e-05,111880.0,111870.0,0.97266979]
[1756908426063,4.658e-05,111880.0,111870.0,0.97666979]
[1756908426905,4.658e-05,111880.0,111870.0,0.98166979]
[1756908427344,4.658e-05,111880.0,111870.0,1.60131115]
[1756908427819,4.658e-05,111880.0,111870.0,0.98166979]
[1756908428463,4.658e-05,111880.0,111870.0,0.98158979]
[1756908429398,4.658e-05,111880.0,111870.0,0.82242979]
[1756908429609,4.658e-05,111880.0,111870.0,0.98158979]
[1756908430458,4.658e-05,111880.0,111870.0,0.82242979]
[1756908430675,4.658e-05,111880.0,111870.0,0.98158979]
[1756908432186,4.658e-05,111880.0,111870.0,0.98154979]
[1756908432609,4.658e-05,111880.0,111870.0,1.94119115]
[1756908432818,4.658e-05,111880.0,111870.0,1.32154979]
[1756908433249,4.658e-05,111880.0,111870.0,1.94119115]
[1756908433466,4.658e-05,111880.0,111870.0,1.32154979]
[1756908433688,4.658e-05,111880.0,111870.0,1.54119115]
[1756908433906,4.658e-05,111880.0,111870.0,0.92154979]
[1756908434163,4.658e-05,111880.0,111870.0,1.32154979]
[1756908434818,4.658e-05,111880.0,111870.0,1.59074979]
[1756908435542,4.658e-05,111880.0,111870.0,1.58788979]
[1756908435750,4.658e-05,111880.0,111870.0,1.59074979]
[1756908436178,4.658e-05,111880.0,111870.0,2.21039115]
[1756908436608,4.658e-05,111880.0,111870.0,1.59074979]
[1756908437156,4.658e-05,111880.0,111870.0,1.58784979]
[1756908437621,4.658e-05,111880.0,111870.0,1.59070979]
[1756908438486,4.658e-05,111880.0,111870.0,1.42876979]
[1756908438703,4.658e-05,111880.0,111870.0,1.58780979]
[1756908438704,0.00211658,111880.0,111870.0,1.58780979]
[1756908438916,4.658e-05,111880.0,111870.0,1.58780979]
[1756908439592,4.658e-05,111880.0,111870.0,1.58666979]
[1756908439816,4.658e-05,111880.0,111870.0,1.59066979]
[1756908440010,4.658e-05,111880.0,111870.0,2.21031115]
[1756908440468,4.658e-05,111880.0,111870.0,2.04727115]
[1756908440679,4.658e-05,111880.0,111870.0,2.20631115]
[1756908440897,4.658e-05,111880.0,111870.0,2.20131115]
[1756908441124,4.658e-05,111880.0,111870.0,2.04227115]
[1756908441346,4.658e-05,111880.0,111870.0,1.42376979]
[1756908441561,0.00535658,111880.0,111870.0,1.55981097]
[1756908441825,0.00535658,111880.0,111870.0,1.57881979]
[1756908441826,0.00211658,111880.0,111870.0,1.57881979]
[1756908442066,0.00535658,111880.0,111870.0,1.57277892]
[1756908442275,0.62499794,111880.0,111870.0,0.7886401]
[1756908442490,0.62499794,111880.0,111870.0,0.9376401]
[1756908442879,0.62499794,111880.0,111870.0,0.9456401]
[1756908443306,4.658e-05,111880.0,111870.0,0.96864892]
[1756908443444,4.658e-05,111880.0,111870.0,0.96464892]
[1756908443646,4.658e-05,111880.0,111870.0,0.96750892]
[1756908443911,4.658e-05,111880.0,111870.0,0.97050892]
[1756908444525,4.658e-05,111880.0,111870.0,0.96650892]
[1756908444727,4.658e-05,111880.0,111870.0,1.85535028]
[1756908445084,4.658e-05,111880.0,111870.0,2.19535028]
[1756908445294,4.658e-05,111880.0,111870.0,2.19635028]
[1756908445523,4.658e-05,111880.0,111870.0,1.79235028]
[1756908445907,4.658e-05,111880.0,111870.0,1.58170892]
[1756908446313,4.658e-05,111880.0,111870.0,1.57270892]
[1756908446801,4.658e-05,111880.0,111870.0,1.57870892]
[1756908447463,4.658e-05,111880.0,111870.0,2.19835028]
[1756908448105,4.658e-05,111880.0,111870.0,2.19831028]
[1756908448547,4.658e-05,111880.0,111870.0,2.20245028]
[1756908448755,0.5874043,111910.0,111900.0,0.178731]
[1756908448983,0.5874043,111910.0,111900.0,0.42974712]
[1756908449206,0.5894743,111910.0,111900.0,0.42974712]
[1756908449425,0.5894743,111910.0,111900.0,0.67078712]
[1756908449641,0.5894743,111910.0,111900.0,0.82970712]
[1756908450047,0.5894743,111910.0,111900.0,0.83270712]
[1756908450702,0.5927143,111910.0,111900.0,0.83270712]
[1756908450905,0.00531,111910.0,111900.0,0.83270712]
[1756908451120,0.00207,111910.0,111900.0,0.83477712]
[1756908451328,0.00207,111910.0,111900.0,1.21276253]
[1756908451542,0.00324,111920.0,111910.0,0.17871503]
[1756908451795,0.8221285,111940.0,111930.0,0.1786831]
[1756908452002,0.8241985,111940.0,111930.0,0.3376031]
[1756908452213,0.64877136,111940.0,111930.0,0.3376031]
[1756908452443,0.62495136,111940.0,111930.0,0.3376031]
[1756908452670,0.00531,111940.0,111930.0,0.3376031]
[1756908452913,0.62495136,111940.0,111930.0,0.3376031]
[1756908453182,0.00631,111940.0,111930.0,0.82951909]
[1756908453812,0.62595136,111940.0,111930.0,0.73931909]
[1756908454026,0.00631,111940.0,111930.0,0.89819909]
[1756908454305,0.62595136,111940.0,111930.0,0.89819909]
[1756908454511,0.62595136,111940.0,111930.0,0.73931909]
[1756908454959,0.62595136,111940.0,111930.0,0.89819909]
[1756908455414,0.8036185,111940.0,111930.0,0.6276]
[1756908455635,0.18397714,111940.0,111930.0,0.56188]
[1756908455897,0.8036185,111940.0,111930.0,0.56188]
[1756908456098,0.8036185,111940.0,111930.0,0.4]
[1756908456311,0.8036185,111940.0,111930.0,0.7375231]
[1756908456502,0.8046185,111940.0,111930.0,0.7375231]
[1756908456748,0.8036185,111940.0,111930.0,0.7375231]
[1756908456996,0.62495136,111940.0,111930.0,0.7375231]
[1756908457202,0.8056185,111940.0,111930.0,0.55884]
[1756908457426,0.8066185,111940.0,111930.0,0.55884]
[1756908457877,0.8066185,111940.0,111930.0,0.7375231]
[1756908458120,0.62795136,111940.0,111930.0,0.7375231]
[1756908458355,0.00831,111940.0,111930.0,0.7375231]
[1756908458573,0.8066185,111940.0,111930.0,0.7375231]
[1756908459016,0.8056185,111940.0,111930.0,0.55884]
[1756908459242,0.8036185,111940.0,111930.0,0.4]
[1756908459491,1.20211564,111940.0,111930.0,0.001]
[1756908459922,1.1678985,111940.0,111930.0,0.001]
[1756908460405,1.1688985,111940.0,111930.0,0.001]
[1756908460623,0.1786831,111930.0,111920.0,0.5588]
[1756908460768,0.80341456,111930.0,111920.0,0.5588]
[1756908461000,0.17871064,111920.0,111900.0,0.56168285]
[1756908461195,0.62484136,111910.0,111900.0,0.38439829]
[1756908461400,0.62484136,111910.0,111900.0,0.54319829]
[1756908461605,0.62484136,111910.0,111900.0,0.94319829]
[1756908462221,0.0052,111910.0,111900.0,0.86965198]
[1756908462436,0.62175136,111910.0,111900.0,0.86965198]
[1756908462657,0.18761725,111930.0,111910.0,0.17871503]
[1756908462877,0.00309,111930.0,111920.0,0.33749907]
[1756908463100,0.0072001,111930.0,111920.0,0.33749907]
[1756908463311,0.0052,111930.0,111920.0,0.33749907]
[1756908463760,0.51866714,111940.0,111930.0,0.1786831]
[1756908463967,1.38939127,111940.0,111930.0,0.1786831]
[1756908464182,1.39248127,111940.0,111930.0,0.1786831]
[1756908465207,0.00211,111940.0,111930.0,0.5786831]
[1756908465410,0.87072413,111940.0,111930.0,0.5808431]
[1756908465611,1.04939127,111940.0,111930.0,0.5786831]
[1756908465863,1.05248127,111940.0,111930.0,0.5786831]
[1756908466064,0.87381413,111940.0,111930.0,0.5786831]
[1756908466894,0.87072413,111940.0,111930.0,0.67059909]
[1756908467120,0.35529623,111970.0,111950.0,0.17865118]
[1756908467121,0.00309,111970.0,111950.0,0.17865118]
[1756908467345,0.00309,111970.0,111960.0,0.17863522]
[1756908467346,0.0050901,111970.0,111960.0,0.17863522]
[1756908467559,0.87370423,111970.0,111960.0,0.17863522]
[1756908467780,0.87381413,111970.0,111960.0,0.17863522]
[1756908468230,1.0524334,111970.0,111960.0,0.17863522]
[1756908468437,1.05290044,111970.0,111960.0,0.17863522]
[1756908468640,0.87428117,111970.0,111960.0,0.17863522]
[1756908468854,1.05290044,111970.0,111960.0,0.57863522]
[1756908469058,0.87428117,111970.0,111960.0,0.57863522]
[1756908469256,1.05290044,111970.0,111960.0,0.57863522]
[1756908469466,0.18428631,111970.0,111960.0,0.57863522]
[1756908469713,1.05290044,111970.0,111960.0,0.57863522]
[1756908470047,1.05290044,111970.0,111960.0,0.57963522]
[1756908470256,0.87428117,111970.0,111960.0,0.57963522]
[1756908470696,1.05290044,111970.0,111960.0,0.57963522]
[1756908471003,1.05290044,111970.0,111960.0,0.401]
[1756908471545,1.05290044,111970.0,111960.0,0.57963522]
[1756908471749,1.05290044,111970.0,111960.0,0.57863522]
[1756908471956,0.00257704,111970.0,111960.0,0.58079522]
[1756908472190,0.87119117,111970.0,111960.0,0.58079522]
[1756908473634,0.00257704,111970.0,111960.0,0.58079522]
[1756908473862,0.86908117,111970.0,111960.0,0.58079522]
[1756908474809,0.00046704,111970.0,111960.0,0.67680121]
[1756908477078,0.00046704,111970.0,111960.0,0.89728497]
[1756908477808,0.00046704,111970.0,111960.0,0.73860497]
[1756908478031,0.00046704,111970.0,111960.0,0.89724497]
[1756908478246,0.00046704,111970.0,111960.0,0.73860497]
[1756908478676,0.00046704,111970.0,111960.0,0.89724497]
[1756908479141,0.00046704,111970.0,111960.0,0.89624497]
[1756908479365,0.00046704,111970.0,111960.0,0.89724497]
[1756908479815,0.00046704,111970.0,111960.0,1.00780497]
[1756908480451,0.00046704,111970.0,111960.0,0.98377615]
[1756908480661,0.00257704,111970.0,111960.0,1.14237615]
[1756908480898,0.00257704,111970.0,111960.0,1.14137615]
[1756908481123,0.00257704,111970.0,111960.0,1.14437615]
[1756908481342,0.00046704,111970.0,111960.0,1.14746615]
[1756908481583,0.00257704,111970.0,111960.0,1.14737615]
[1756908481803,0.00046704,111970.0,111960.0,1.14437615]
[1756908482250,0.00257704,111970.0,111960.0,0.98677615]
[1756908482484,0.00257704,111970.0,111960.0,1.14437615]
[1756908482929,0.00257704,111970.0,111960.0,0.98577615]
[1756908483164,1.05490054,111970.0,111960.0,0.62250016]
[1756908483395,1.05290044,111970.0,111960.0,0.60346494]
[1756908483619,1.05290044,111970.0,111960.0,0.78210016]
[1756908483872,1.05290044,111970.0,111960.0,0.44486494]
[1756908484102,1.05290044,111970.0,111960.0,0.60246494]
[1756908484772,1.05290044,111970.0,111960.0,0.59946494]
[1756908485254,1.05290044,111970.0,111960.0,0.60146494]
[1756908485474,1.05290044,111970.0,111960.0,0.59946494]
[1756908485718,1.05290044,111970.0,111960.0,0.44086494]
[1756908485953,0.17866714,111940.0,111930.0,0.52549725]
[1756908486186,1.05248127,111940.0,111930.0,0.33927909]
[1756908486422,1.05248127,111940.0,111930.0,0.89783909]
[1756908486660,1.05248127,111940.0,111930.0,0.55856]
[1756908486890,1.05248127,111940.0,111930.0,0.15856]
[1756908487322,1.05248127,111940.0,111930.0,0.7372431]
[1756908487571,0.87381413,111940.0,111930.0,0.7372431]
[1756908487795,1.05248127,111940.0,111930.0,0.3372431]
[1756908488023,1.05248127,111940.0,111930.0,0.15856]
[1756908488473,1.05248127,111940.0,111930.0,0.16056]
[1756908488746,1.05248127,111940.0,111930.0,0.16356]
[1756908489441,1.05248127,111940.0,111930.0,0.16056]
[1756908489577,1.05248127,111940.0,111930.0,0.38005861]
[1756908489806,1.05348127,111940.0,111930.0,0.20137551]
[1756908490205,1.05348127,111940.0,111930.0,0.38005861]
[1756908490420,1.05348127,111940.0,111930.0,0.37805861]
[1756908491023,0.87172413,111940.0,111930.0,0.38009861]
[1756908491490,1.05039127,111940.0,111930.0,0.38009861]
[1756908491699,1.05357127,111940.0,111930.0,0.77805861]
[1756908491906,1.05257127,111940.0,111930.0,0.77805861]
[1756908492224,1.05357127,111940.0,111930.0,0.77805861]
[1756908492425,0.87490413,111940.0,111930.0,0.77805861]
[1756908492717,0.87072413,111940.0,111930.0,0.7392831]
[1756908493136,0.87072413,111940.0,111930.0,0.7402831]
[1756908493363,1.05045845,111960.0,111950.0,0.17865118]
[1756908493594,0.00046704,111970.0,111960.0,0.17863522]
[1756908493838,0.00046704,111970.0,111960.0,0.18067522]
[1756908493839,0.87307127,111970.0,111960.0,0.18067522]
[1756908494060,0.00245704,111970.0,111960.0,0.18067522]
[1756908494269,0.00246714,111970.0,111960.0,0.18067522]
[1756908494483,0.00445714,111970.0,111960.0,0.18067522]
[1756908494684,0.00445714,111970.0,111960.0,0.17967522]
[1756908495158,0.87307127,111970.0,111960.0,0.17967522]
[1756908495368,0.87107117,111970.0,111960.0,0.57967522]
[1756908495578,0.87107117,111970.0,111960.0,0.57767522]
[1756908495791,0.86908117,111970.0,111960.0,0.58079522]
[1756908496003,1.04969044,111970.0,111960.0,0.58379522]
[1756908496170,0.87425117,111970.0,111960.0,0.57863522]
[1756908496362,1.05287044,111970.0,111960.0,0.57863522]
[1756908496597,1.05287044,111970.0,111960.0,0.4]
[1756908496829,1.05287044,111970.0,111960.0,0.73719522]
[1756908497047,0.00245704,111970.0,111960.0,0.73923522]